Cogmind - Beta 9.6 @@@ ROGUE MODE // 2020.05.09 @ 12:25:13 Player: Jelly Result: Self-destructed Performance ------------- Evolutions (1) 500 Regions Visited (6) 1200 Robots Destroyed (9) 45 Value Destroyed (333) 333 Prototype IDs (0) 0 Alien Tech Used (0) 0 Bonus (133) 133 TOTAL SCORE: 2211 Bonus ------- Follower Combat Kills 133 Cogmind --------- Core Integrity 322/400 Matter 230/300 Energy 250/250 System Corruption 0% Temperature Cool (0) Movement Walking (120) Location -8/Mines Parts ------- > --- POWER (1) -------- Ion Engine > --- PROPULSION (3) --- Aluminum Leg Aluminum Leg Carbon-fiber Leg > --- UTILITY (2) ------ Improved Heat Sink Medium Storage Unit > --- WEAPON (3) ------- EM Pulse Gun > --- INVENTORY (8) ---- Aluminum Leg Aluminum Leg Medium Storage Unit Advanced Signal Interpreter Advanced Terrain Scanner Mining Laser Peak State ------------ > --- POWER ------------ Improved Ion Engine > --- PROPULSION ------- Aluminum Leg Aluminum Leg Carbon-fiber Leg > --- UTILITY ---------- Improved Heat Sink Medium Storage Unit > --- WEAPON ----------- EM Pulse Gun Beam Rifle Particle Cannon > --- INVENTORY -------- Ion Engine Aluminum Leg Aluminum Leg Small Storage Unit Small Matter Pod Reclamation Unit Rocket Launcher Mining Laser [Rating: 17] Favorites ----------- Power Ion Engine Engine Ion Engine Propulsion Aluminum Leg Leg Aluminum Leg Utility Improved Heat Sink Device Improved Heat Sink Storage Small Storage Unit Weapon EM Pulse Gun Energy Gun EM Pulse Gun Energy Cannon Particle Cannon Ballistic Gun Light Assault Rifle Launcher Rocket Launcher Build | -11 -10 -10 -9 -9 -9 -8 ------- Run | Scr Mat Min Mat Min Exi Min Slots Evolved 2 | . . . 2 . . . Power . | . . . . . . . Propulsion 1 | . . . 1 . . . Utility . | . . . . . . . Weapon 1 | . . . 1 . . . Parts Attached 21 | 6 4 . 8 . 1 2 Power 4 | 1 1 . 1 . . 1 Engine 4 | 1 1 . 1 . . 1 Core . | . . . . . . . Reactor . | . . . . . . . Propulsion 4 | 2 . . 2 . . . Treads . | . . . . . . . Leg 4 | 2 . . 2 . . . Wheel . | . . . . . . . Hover . | . . . . . . . Flight . | . . . . . . . Utility 3 | 1 1 . . . 1 . Device 1 | . 1 . . . . . Storage 2 | 1 . . . . 1 . Processor . | . . . . . . . Hackware . | . . . . . . . Protection . | . . . . . . . Artifact . | . . . . . . . Weapon 10 | 2 2 . 5 . . 1 Energy Gun 6 | 2 2 . 2 . . . Energy Cannon 1 | . . . 1 . . . Ballistic Gun 2 | . . . 2 . . . Ballistic Cannon . | . . . . . . . Launcher 1 | . . . . . . 1 Special Weapon . | . . . . . . . Impact Weapon . | . . . . . . . Slashing Weapon . | . . . . . . . Piercing Weapon . | . . . . . . . Special Melee Weapon . | . . . . . . . Unidentified Prototypes . | . . . . . . . Parts Lost 2 | . . . . . . 2 Power 1 | . . . . . . 1 Propulsion . | . . . . . . . Utility . | . . . . . . . Weapon 1 | . . . . . . 1 Highest Loss Streak 1 | . . . . . . 1 Average Slot Usage (%) 95 | . 94 100 97 100 99 91 Engine 11 | . 14 14 11 11 11 11 Leg 31 | . 28 28 30 33 33 33 Device 11 | . 8 14 11 11 11 11 Storage 11 | . 14 14 11 11 10 11 Energy Gun 21 | . 28 28 19 22 22 16 Energy Cannon 6 | . . . 9 11 11 6 Naked Turns . | . . . . . . . Heaviest Build 26 | 12 14 14 21 21 25 26 Greatest Support 35 | 20 20 20 35 35 35 35 Greatest Overweight (x) 1 | 1 . . . . . . Average Overweight (x) . | . . . . . . . Largest Inventory Capacity 8 | 6 6 6 6 6 8 8 Average Capacity 6 | 5 6 6 6 6 7 8 Most Carried 8 | 4 6 6 6 6 8 8 Average Carried 5 | 1 4 5 4 6 6 7 Final Capacity 8 | 6 6 6 6 6 8 8 Final Carried 7 | 4 5 6 6 6 7 6 Class Distribution -------------------- 43% | Scavenger-Gunner 38% | Mutant 17% | Gunner Dominant Class ---------------- Mutant | -10/Materials Mutant | -10/Mines Gunner | -9/Materials Scavenger-Gunner | -9/Mines Scavenger-Gunner | -9/Exiles Scavenger-Gunner | -8/Mines Resources | -11 -10 -10 -9 -9 -9 -8 ----------- Run | Scr Mat Min Mat Min Exi Min Matter Collected 469 | 255 15 30 72 . 20 77 Remotely . | . . . . . . . Salvage Created 315 | . 87 . 92 . . 136 Parts 18 | . 4 . 7 . . 7 Haulers Intercepted . | . . . . . . . Recyclers Shooed . | . . . . . . . Parts Field Recycled . | . . . . . . . Retrieved Matter . | . . . . . . . Parts Self-Destructed . | . . . . . . . Prevented . | . . . . . . . Kills | -11 -10 -10 -9 -9 -9 -8 ------- Run | Scr Mat Min Mat Min Exi Min Combat Hostiles Destroyed 9 | . 2 . 2 . . 5 Guns 5 | . 2 . 1 . . 2 Cannons 3 | . . . 1 . . 2 AOE 1 | . . . . . . 1 Classes Destroyed 2 | . 1 . . . . 1 Swarmer 2 | . . . . . . 2 Grunt 7 | . 2 . 2 . . 3 Best Kill Streak 3 | . 2 . 1 . . 3 Combat Bots Only 3 | . 2 . 1 . . 3 Max Kills in Single Turn 1 | . 1 . 1 . . 1 Gunslinging . | . . . . . . . Exploded 1 | . . . . . . 1 Melee . | . . . . . . . Uniques/NPCs Destroyed . | . . . . . . . Combat | -11 -10 -10 -9 -9 -9 -8 -------- Run | Scr Mat Min Mat Min Exi Min Damage Taken 504 | . 84 . 10 . . 410 Core 78 | . . . 10 . . 68 Absorbed by Shields . | . . . . . . . Core Remaining (%) 100 | 100 . 100 . . . . Volleys Fired 33 | . 6 1 8 . . 18 Largest 3 | . 2 2 3 . . 3 Hottest 164 | . 90 90 164 . . 164 Shots Fired 84 | . 12 2 24 . . 46 Gun 50 | . 12 2 16 . . 20 Cannon 22 | . . . 8 . . 14 Launcher 12 | . . . . . . 12 Special . | . . . . . . . Kinetic 2 | . . . 2 . . . Thermal 46 | . 12 1 14 . . 19 Explosive 12 | . . . . . . 12 Electromagnetic 24 | . . 1 8 . . 15 Robot Hit Streak 10 | . 10 1 8 . . 4 Robot Miss Streak 3 | . . 1 3 . . 3 Penetration Max . | . . . . . . . Secondary Targets . | . . . . . . . Shots Hit Robots 50 | . 10 1 15 . . 24 Core Hits 19 | . 5 . 4 . . 10 Critical Hits . | . . . . . . . Critical Kills . | . . . . . . . Critical Parts Destroyed . | . . . . . . . Melee Attacks . | . . . . . . . Impact . | . . . . . . . Slashing . | . . . . . . . Piercing . | . . . . . . . Sneak Attacks . | . . . . . . . Combat Hostiles . | . . . . . . . Follow-up Attacks . | . . . . . . . Damage Inflicted 744 | . 123 . 138 . . 483 Guns 358 | . 123 . 98 . . 137 Cannons 102 | . . . 40 . . 62 Explosions 284 | . . . . . . 284 Melee . | . . . . . . . Ramming . | . . . . . . . Kinetic . | . . . . . . . Thermal 283 | . 123 . 98 . . 62 Explosive 284 | . . . . . . 284 Electromagnetic 177 | . . . 40 . . 137 Impact . | . . . . . . . Slashing . | . . . . . . . Piercing . | . . . . . . . Highest Corruption . | . . . . . . . Average Corruption . | . . . . . . . Corruption Purged . | . . . . . . . Overload Shots . | . . . . . . . Overflow Damage . | . . . . . . . Projectiles . | . . . . . . . Explosions . | . . . . . . . Melee . | . . . . . . . Knockbacks . | . . . . . . . Impact . | . . . . . . . Kinetic . | . . . . . . . Secondary . | . . . . . . . Self-Inflicted Damage 47 | . . . . . . 47 Shots 1 | . . . . . . 1 Rammed . | . . . . . . . Targets Rammed . | . . . . . . . Kicked . | . . . . . . . Crushed . | . . . . . . . Highest Temperature 225 | . 225 . 116 . . 215 Average Temperature 79 | . 113 . 44 . . 81 Received Heat Transfer 213 | . 45 . 6 . . 162 Siege Activations . | . . . . . . . Robots Corrupted . | . . . . . . . Combat Hostiles . | . . . . . . . Parts Fried . | . . . . . . . Impact Corruptions . | . . . . . . . Robots Melted . | . . . . . . . Combat Hostiles . | . . . . . . . Parts Melted 2 | . 1 . 1 . . . Heat Transferred 655 | . 322 . 222 . . 111 Parts Sabotaged . | . . . . . . . Parts Stolen . | . . . . . . . Parts Stripped . | . . . . . . . Power Chain Reactions . | . . . . . . . Missiles Intercepted . | . . . . . . . Alert | -11 -10 -10 -9 -9 -9 -8 ------- Run | Scr Mat Min Mat Min Exi Min Peak Influence 260 | . 50 19 260 93 . 173 Average Influence 85 | . 36 19 164 93 . 85 Maximum Alert Level 1 | . . . 1 . . . Low Security (%) 85 | 100 100 100 44 100 . 100 Level 1 14 | . . . 55 . . . Level 2 . | . . . . . . . Level 3 . | . . . . . . . Level 4 . | . . . . . . . Level 5 . | . . . . . . . High Security . | . . . . . . . Max Security . | . . . . . . . Squads Dispatched 4 | . . . 4 . . . Investigation . | . . . . . . . Extermination . | . . . . . . . Reinforcement 4 | . . . 4 . . . Assault . | . . . . . . . Garrison . | . . . . . . . Intercept . | . . . . . . . Construction Impeded . | . . . . . . . Haulers Reinforced . | . . . . . . . Stealth | -11 -10 -10 -9 -9 -9 -8 --------- Run | Scr Mat Min Mat Min Exi Min Distress Signals 3 | . . . 3 . . . Communications Jammed . | . . . . . . . Distress Signals . | . . . . . . . Times Spotted 26 | . 4 . 12 . . 10 Peak Tracking Total 5 | . 3 . 5 . . 3 Tactical Retreats 1 | . . . . . . 1 Traps | -11 -10 -10 -9 -9 -9 -8 ------- Run | Scr Mat Min Mat Min Exi Min Traps Triggered . | . . . . . . . Indirectly . | . . . . . . . Trap Hack Attempts . | . . . . . . . Triggered . | . . . . . . . Disarmed . | . . . . . . . Reprogrammed . | . . . . . . . Reused . | . . . . . . . Traps Extracted . | . . . . . . . Installed . | . . . . . . . Triggered . | . . . . . . . Machines | -11 -10 -10 -9 -9 -9 -8 ---------- Run | Scr Mat Min Mat Min Exi Min Machines Disabled 2 | . . . 2 . . . Max in Single Turn . | . . . . . . . Machines Sabotaged . | . . . . . . . Garrisons Compromised . | . . . . . . . Overloaded Fab Kills . | . . . . . . . Fab Network Shutdowns . | . . . . . . . Hacking | -11 -10 -10 -9 -9 -9 -8 --------- Run | Scr Mat Min Mat Min Exi Min Machines Accessed 2 | . . . 1 . 1 . Terminals 1 | . . . 1 . . . Fabricators . | . . . . . . . Repair Stations . | . . . . . . . Recycling Units . | . . . . . . . Scanalyzers . | . . . . . . . Garrison Access . | . . . . . . . Total Hacks 25 | . . . 2 . 23 . Successful 25 | . . . 2 . 23 . Failed . | . . . . . . . Catastrophic . | . . . . . . . Database Lockouts . | . . . . . . . Manual . | . . . . . . . Terminals 2 | . . . 2 . . . Fabricators . | . . . . . . . Repair Stations . | . . . . . . . Recycling Units . | . . . . . . . Scanalyzers . | . . . . . . . Garrison Access . | . . . . . . . Terminal Hacks 25 | . . . 2 . 23 . Record 23 | . . . . . 23 . Emergency Access Points 1 | . . . 1 . . . Locate Traps 1 | . . . 1 . . . Fabricator Hacks . | . . . . . . . Repair Station Hacks . | . . . . . . . Recycling Unit Hacks . | . . . . . . . Scanalyzer . | . . . . . . . Garrison Access Hacks . | . . . . . . . Unauthorized Hacks . | . . . . . . . Terminals . | . . . . . . . Fabricators . | . . . . . . . Repair Stations . | . . . . . . . Recycling Units . | . . . . . . . Scanalyzers . | . . . . . . . Garrison Access . | . . . . . . . Data Cores Recovered . | . . . . . . . Used . | . . . . . . . Hacking Detections . | . . . . . . . Full Trace Events . | . . . . . . . Feedback Events . | . . . . . . . Feedback Blocked . | . . . . . . . Robot Schematics Acquired . | . . . . . . . Robots Built . | . . . . . . . Matter . | . . . . . . . Time . | . . . . . . . Total Robot Build Rating . | . . . . . . . Part Schematics Acquired . | . . . . . . . Parts Built . | . . . . . . . Matter . | . . . . . . . Time . | . . . . . . . Total Part Build Rating . | . . . . . . . Parts Repaired . | . . . . . . . Time . | . . . . . . . Parts Recycled . | . . . . . . . Recycled Matter . | . . . . . . . Retrieved Matter . | . . . . . . . Retrieved Components . | . . . . . . . Parts Scanalyzed . | . . . . . . . Part Schematics Acquired . | . . . . . . . Parts Damaged . | . . . . . . . Bothacking | -11 -10 -10 -9 -9 -9 -8 ------------ Run | Scr Mat Min Mat Min Exi Min Used RIF Installer . | . . . . . . . Robots Hacked . | . . . . . . . Non-combat . | . . . . . . . Combat . | . . . . . . . Robot Hacks Applied . | . . . . . . . Relay Couplers Released . | . . . . . . . Robots Rewired . | . . . . . . . Allies Hacked . | . . . . . . . Hacks Repelled . | . . . . . . . Allies | -11 -10 -10 -9 -9 -9 -8 -------- Run | Scr Mat Min Mat Min Exi Min Total Allies 1 | . . 1 . . . . Largest Group 1 | . . 1 1 . . . Highest-Rated Group 31 | . . 31 31 . . . Highest-Rated Ally 31 | . . 31 31 . . . Total Orders . | . . . . . . . Ally Attacks 13 | . . . 13 . . . Total Damage 150 | . . . 150 . . . Kills 6 | . . . 6 . . . Allies Corrupted . | . . . . . . . Allies Melted . | . . . . . . . Intel | -11 -10 -10 -9 -9 -9 -8 ------- Run | Scr Mat Min Mat Min Exi Min Robot Analysis Total . | . . . . . . . Derelict Logs Recovered 1 | . . 1 . . . . Drone Launches . | . . . . . . . Drone Recoveries . | . . . . . . . Exploration | -11 -10 -10 -9 -9 -9 -8 ------------- Run | Scr Mat Min Mat Min Exi Min Turns Passed 1506 | 70 164 191 322 74 252 433 Spaces Moved 1088 | 51 102 155 226 62 202 290 Core 9 | 9 . . . . . . Treads . | . . . . . . . Legs 1079 | 42 102 155 226 62 202 290 Wheels . | . . . . . . . Hover . | . . . . . . . Flight . | . . . . . . . Fastest Speed 50 | 50 120 120 120 120 120 120 Average Speed 119 | 111 120 120 120 120 120 120 Slowest Speed 120 | 120 120 120 120 120 120 120 Overloaded Moves . | . . . . . . . Propulsion Burnouts . | . . . . . . . Robots Hopped . | . . . . . . . Cave-ins Triggered . | . . . . . . . Exploration Rate (%) 33 | 4 31 39 24 30 56 51 Regions Visited 6 Branch Regions 4 Pre-discovered Areas 1 | . . . . . 1 . Known Exits Taken . | . . . . . . . Unknown Exits Taken 6 | 1 1 1 1 1 1 . Scrap Searched 2 | . . 1 . . . 1 Spaces Dug . | . . . . . . . Terrain Destroyed 109 | . . . . . . 109 Melee . | . . . . . . . Projectile 3 | . . . . . . 3 AOE 106 | . . . . . . 106 Actions | -11 -10 -10 -9 -9 -9 -8 --------- Run | Scr Mat Min Mat Min Exi Min Total 1233 | 61 133 158 266 61 212 342 Wait 43 | . 14 . 2 . 2 25 Move 1082 | 50 101 154 225 61 201 290 Hop . | . . . . . . . Pick Up 28 | 5 4 2 10 . 5 2 Fast Attach 7 | 5 . . 1 . 1 . Attach 13 | 1 3 . 7 . . 2 Detach 7 | . 1 . 4 . . 2 Swap 1 | . 1 . . . . . Drop 19 | . 3 1 9 . 3 3 Fire 33 | . 6 1 8 . . 18 Melee . | . . . . . . . Ram . | . . . . . . . Kick . | . . . . . . . Crush . | . . . . . . . Escape Stasis . | . . . . . . . Rewire . | . . . . . . . Trap . | . . . . . . . Miscellaneous . | . . . . . . . Route ------- -11/Scrapyard -10/Materials -10/Mines -9/Materials (discovered 2 exits: [*Mat] / [*Min]) -9/Mines -9/Exiles -8/Mines (discovered 1 exit: [*Mat]) History --------- Turn | Location | Event 11 | -11/Scrapyard | Discovered new exit (range 15) 71 | -11/Scrapyard | Entered Materials 217 | -10/Materials | Discovered new exit (range 3) 235 | -10/Materials | Entered Mines 313 | -10/Mines | Build established: Mutant 337 | -10/Mines | Learned Materials terminal intel 404 | -10/Mines | Discovered new exit (range 7) 406 | -10/Mines | Received a Mining Laser from a helpful Derelict 426 | -10/Mines | Entered Materials 426 | -9/Materials | Accompanied by 1 ally 426 | -9/Materials | Evolved 2 slots: Propulsion x1, Weapon x1 427 | -9/Materials | Loaded intel: 12 terminal locations 594 | -9/Materials | Met 8R-AWN 595 | -9/Materials | Discovered new exit (range 15) 676 | -9/Materials | Discovered new exit (range 12) 748 | -9/Materials | Entered Mines 750 | -9/Mines | Followed 8R-AWN into the Mines 817 | -9/Mines | Discovered new exit (range 5) 822 | -9/Mines | Entered Exiles 858 | -9/Exiles | Welcomed by 8R-AWN 886 | -9/Exiles | Met EX-HEX 972 | -9/Exiles | Build established: Scavenger-Gunner 977 | -9/Exiles | Met EX-DEC 1011 | -9/Exiles | Learned location of Zion (-7) 1059 | -9/Exiles | Discovered new exit (range 12) 1074 | -9/Exiles | Entered Mines 1504 | -8/Mines | Discovered new exit (range 11) 1507 | -8/Mines | Self-destructed Last Messages --------------- 01378_ U-05 Engineer lays Concrete. 01397_ U-05 Engineer builds a Wall. 01404_ U-05 Engineer lays Concrete. 01406_ U-05 Engineer builds a Wall. 01408_ The unstable cave ceiling collapses. 01410_ U-05 Engineer builds a Wall. 01414_ U-05 Engineer lays Concrete. 01414_ Acquired 12 matter. 01415_ Acquired 17 matter. 01420_ K-01 Serf collects debris. 01421_ U-05 Engineer builds a Wall. 01426_ The unstable cave ceiling collapses. 01426_ U-05 Engineer builds a Wall. 01440_ The unstable cave ceiling collapses. 01468_ U-05 Engineer lays Concrete. 01471_ U-05 Engineer builds a Wall. 01504_ EXIT=FOUND 01506_ C-30 ARC bursts open, deploying its payload. 01506_ G-50 Soldier unfolds itself. 01506_ G-47 Trooper unfolds itself. Map ----- +----------------------------------------------------+ | ?????## ###### ## ##??# #?# # | | ????## ## ##??# ### # | | ????# ######### #### # | | ????# ##### | | ????# #??? | | ????# #### #### # # #? | | ???## ##??# # ## ### # | | ???# ##### ### #### # | | ???# ## #?## | | ???# ####### # #??# | | ???# ##????## ##?# | | ???# #?????# #### | | ???# #?????# #??# | | ???## #?????# #???# | | ????## #?????# ##????### | | ?????# #?????## ##??????? | | ?????# #??????### #??????? | | ?????# #????????## ##?????? | | ?????# #????????## ##????? | | ?????# #????????# """ #????? | | ?????# #???????# """ #????? | | ?????# #???????# """ #????? | | ?????# #???????## #????? | | ?????# #????????##### #???? | | ?????# #?????????????# #???? | | ?????# @#??????????????# #???? | | ?????# #???????????????# ????? | | ?????# g#???????????????? ?????? | | ????? gg%??????????????????????? | | ????# ??????????????????????? | | ????# """??????????????????????? | | ????# """??????????????????????? | | ????# """ ?????????????????????? | | ????# """ ?????????????????????? | | ????# ??? ?????????????????????? | | ????# ???